fUSD/lending_fUSD_20250620
["ID","MTS","AMOUNT","RATE_DAILY","PERIOD"]
[366717507,1750415704891,-345.91,0.000338,31]
[366717508,1750415704901,-345.91,0.000338,31]
[366717509,1750415704911,-345.91,0.000338,31]
[366717510,1750415704921,-345.91,0.000338,31]
[366717511,1750415704931,-345.91,0.000338,31]
[366717512,1750415704940,-345.91,0.000338,31]
[366717513,1750415704950,-345.91,0.000338,31]
[366717514,1750415704961,-345.91,0.000338,31]
[366717515,1750415704971,-150.0,0.00033826,2]
[366717516,1750415704981,-150.0,0.00033841,120]
[366717517,1750415704991,-253.03057,0.00033888,7]
[366717518,1750415705001,-150.0,0.00033897,120]
[366717519,1750415705012,-340.58095676,0.000339,120]
[366717520,1750415705022,-150.0,0.0003392,7]
[366717521,1750415705032,-5000.0,0.00033972,14]
[366717522,1750415705042,-914.22585,0.00033973,120]
[366717523,1750415705052,-150.0,0.00033997,120]
[366717524,1750415705062,-500.0,0.00033999,50]
[366717525,1750415705072,-500.0,0.00033999,50]
[366717526,1750415705083,-151.0,0.00033999,50]
[366717527,1750415705093,-151.30640093,0.00033999,50]
[366717528,1750415705104,-151.0,0.00033999,50]
[366717529,1750415705115,-500.0,0.00033999,50]
[366717530,1750415705124,-500.0,0.00033999,50]
[366717531,1750415705135,-300.67,0.00034,2]
[366717532,1750415705145,-300.0,0.00034,2]
[366717533,1750415705158,-2280.24,0.00034,2]
[366717534,1750415705168,-244.34,0.00034,2]
[366717535,1750415705179,-341.13,0.00034,2]
[366717536,1750415705189,-455.27,0.00034,2]
[366717537,1750415705199,-2000.0,0.00034,120]
[366717538,1750415705209,-1100.25793408,0.00034,30]
[366717539,1750415705219,-302.98,0.00034,120]
[366717540,1750415705230,-600.0,0.00034,120]
[366717541,1750415705239,-1000.0,0.00034,120]
[366717542,1750415705248,-11591.0,0.00034,120]
[366717543,1750415705258,-508.0,0.00034041,30]
[366717544,1750415705269,-508.0,0.00034041,30]
[366717545,1750415705282,-500.0,0.00034069,120]
[366717546,1750415705292,-267.46074303,0.00034073,2]
[366717547,1750415705302,-253.03057,0.00034088,7]
[366717548,1750415705311,-1716.0,0.00034094,2]
[366717549,1750415705322,-345.91,0.000341,31]
[366717550,1750415705332,-345.91,0.000341,31]
[366717551,1750415705342,-345.91,0.000341,31]
[366717552,1750415705352,-345.91,0.000341,31]
[366717553,1750415705362,-345.91,0.000341,31]
[366717554,1750415705371,-345.91,0.000341,31]
[366717555,1750415705381,-345.91,0.000341,31]
[366717556,1750415705390,-345.91,0.000341,31]
[366717557,1750415705401,-345.91,0.000341,31]
[366717558,1750415705411,-345.91,0.000341,31]
[366717559,1750415705421,-345.91,0.000341,31]
[366717560,1750415705431,-345.91,0.000341,31]
[366717561,1750415705440,-345.91,0.000341,31]
[366717562,1750415705450,-345.91,0.000341,31]
[366717563,1750415705460,-345.91,0.000341,31]
[366717564,1750415705470,-345.91,0.000341,31]
[366717565,1750415705480,-345.91,0.000341,31]
[366717566,1750415705489,-345.91,0.000341,31]
[366717567,1750415705499,-345.91,0.000341,31]
[366717568,1750415705509,-345.91,0.000341,31]
[366717569,1750415705518,-345.91,0.000341,31]
[366717570,1750415705527,-345.91,0.000341,31]
[366717571,1750415705537,-345.91,0.000341,31]
[366717572,1750415705546,-345.91,0.000341,31]
[366717573,1750415705556,-150.0,0.00034113,7]
[366717574,1750415705565,-500.0,0.00034125,7]
[366717575,1750415705575,-150.0,0.00034129,120]
[366717576,1750415705585,-152.0,0.00034142,5]
[366717577,1750415705595,-220.87558894,0.00034142,5]
[366717578,1750415705604,-150.0,0.00034159,120]
[366717579,1750415705614,-150.0,0.00034179,120]
[366717580,1750415705623,-150.0,0.00034236,7]
[366717581,1750415705634,-5000.0,0.00034246,17]
[366717582,1750415705643,-2674.34,0.00034246,11]
[366717583,1750415705653,-170.76,0.00034247,120]
[366717584,1750415705663,-150.0,0.0003425,120]
[366717585,1750415705672,-442.08,0.00034284,2]
[366717586,1750415705682,-253.03057,0.00034288,7]
[366717587,1750415705691,-106941.06494735,0.000343,30]
[366717588,1750415705700,-345.91,0.000343,31]
[366717589,1750415705710,-345.91,0.000343,31]
[366717590,1750415705720,-345.91,0.000343,31]
[366717591,1750415705729,-345.91,0.000343,31]
[366717592,1750415705739,-345.91,0.000343,31]
[366717593,1750415705749,-345.91,0.000343,31]
[366717594,1750415705759,-345.91,0.000343,31]
[366717595,1750415705769,-345.91,0.000343,31]
[366717596,1750415705977,-345.91,0.000343,31]
[366717597,1750415705989,-345.91,0.000343,31]
[366717598,1750415705999,-345.91,0.000343,31]
[366717599,1750415706009,-345.91,0.000343,31]
[366717600,1750415706018,-345.91,0.000343,31]
[366717601,1750415706028,-345.91,0.000343,31]
[366717602,1750415706037,-345.91,0.000343,31]
[366717603,1750415706047,-345.91,0.000343,31]
[366717604,1750415706056,-345.91,0.000343,31]
[366717605,1750415706066,-345.91,0.000343,31]
[366717606,1750415706076,-345.91,0.000343,31]
[366717607,1750415706086,-345.91,0.000343,31]
[366717608,1750415706096,-345.91,0.000343,31]
[366717609,1750415706107,-345.91,0.000343,31]
[366717610,1750415706117,-345.91,0.000343,31]
[366717611,1750415706127,-345.91,0.000343,31]
[366717612,1750415706138,-508.0,0.00034315,30]
[366717613,1750415706148,-508.0,0.00034315,30]
[366717614,1750415706158,-700.0,0.00034336,60]
[366717615,1750415706168,-150.0,0.00034355,7]
[366717616,1750415706178,-65086.35182466,0.000344,60]
[366717617,1750415706188,-276.43,0.000344,2]
[366717618,1750415706198,-164.39,0.000344,2]
[366717619,1750415706208,-58809.92,0.000344,2]
[366717620,1750415706218,-14584.86,0.000344,2]
[366717621,1750415706227,-288.09,0.000344,2]
[366717622,1750415706237,-72476.96,0.000344,2]
[366717623,1750415706247,-150.0,0.00034434,120]
[366717624,1750415706257,-31776.37964346,0.00034442,2]
[366717625,1750415706267,-1716.0,0.00034442,2]
[366717626,1750415706280,-150.0,0.00034446,120]
[366717627,1750415706290,-501.17741119,0.00034454,7]
[366717628,1750415706300,-150.0,0.00034474,120]
[366717629,1750415706310,-253.03057,0.00034488,7]
[366717630,1750415706319,-2000.0,0.000345,120]
[366717631,1750415706329,-1654.0,0.000345,120]
[366717632,1750415706339,-353.45261909,0.000345,120]
[366717633,1750415706349,-564.99947584,0.000345,120]
[366717634,1750415706359,-563.65,0.000345,120]
[366717635,1750415706369,-252489.65724877,0.000345,15]
[366717636,1750415706379,-4000.0,0.000345,4]
[366717637,1750415706389,-150.0,0.00034511,120]
[366717638,1750415706399,-5000.0,0.0003452,20]
[366717639,1750415706410,-500.0,0.0003452,30]
[366717640,1750415706420,-500.0,0.0003452,30]
[366717641,1750415706430,-151.0,0.0003452,30]
[366717642,1750415706439,-151.0,0.0003452,30]
[366717643,1750415706449,-151.0,0.0003452,30]
[366717644,1750415706459,-151.0,0.0003452,30]
[366717645,1750415706469,-500.0,0.0003452,30]
[366717646,1750415706478,-500.0,0.0003452,30]
[366717647,1750415706488,-3334.0,0.00034523,2]
[366717648,1750415706498,-946.0,0.00034523,2]
[366717649,1750415706507,-518.55654573,0.00034533,7]
[366717650,1750415706517,-150.0,0.00034581,120]
[366717651,1750415706527,-500.0,0.00034588,30]
[366717652,1750415706537,-500.0,0.00034588,30]
[366717653,1750415706546,-151.0,0.00034588,30]
[366717654,1750415706556,-151.0,0.00034588,30]
[366717655,1750415706566,-151.0,0.00034588,30]
[366717656,1750415706576,-151.0,0.00034588,30]
[366717657,1750415706585,-500.0,0.00034588,30]
[366717658,1750415706594,-500.0,0.00034588,30]
[366717659,1750415706604,-508.0,0.00034589,30]
[366717660,1750415706613,-508.0,0.00034589,30]
[366717661,1750415706623,-150.0,0.0003459,120]
[366717662,1750415706632,-3263.61215984,0.000346,30]
[366717663,1750415706642,-345.91,0.000346,31]
[366717664,1750415706652,-345.91,0.000346,31]
[366717665,1750415706663,-345.91,0.000346,31]
[366717666,1750415706673,-345.91,0.000346,31]
[366717667,1750415706683,-345.91,0.000346,31]
[366717668,1750415706693,-345.91,0.000346,31]
[366717669,1750415706704,-345.91,0.000346,31]
[366717670,1750415706715,-345.91,0.000346,31]
[366717671,1750415706725,-345.91,0.000346,31]
[366717672,1750415706735,-345.91,0.000346,31]
[366717673,1750415706745,-345.91,0.000346,31]
[366717674,1750415706754,-345.91,0.000346,31]
[366717675,1750415706764,-345.91,0.000346,31]
[366717676,1750415706774,-345.91,0.000346,31]
[366717677,1750415706784,-345.91,0.000346,31]
[366717678,1750415706793,-345.91,0.000346,31]
[366717679,1750415706803,-150.0,0.00034619,30]
[366717680,1750415706813,-477.78632156,0.00034619,30]
[366717681,1750415706823,-150.0,0.00034619,30]
[366717682,1750415706832,-21038.51553734,0.00034619,30]
[366717683,1750415706842,-150.0,0.00034619,30]
[366717684,1750415706851,-1687.23291228,0.00034619,30]
[366717685,1750415706860,-500.0,0.00034662,30]
[366717686,1750415706870,-500.0,0.00034662,30]
[366717687,1750415706879,-151.0,0.00034662,30]
[366717688,1750415706889,-151.0,0.00034662,30]
[366717689,1750415706899,-151.0,0.00034662,30]
[366717690,1750415706909,-151.0,0.00034662,30]
[366717691,1750415706919,-151.0,0.00034662,30]
[366717692,1750415706929,-500.0,0.00034662,30]
[366717693,1750415706938,-500.0,0.00034662,30]
[366717694,1750415706947,-253.03057,0.00034688,7]
[366717695,1750415706957,-151.0,0.00034699,30]
[366717696,1750415706967,-500.0,0.00034699,30]
[366717697,1750415706976,-500.0,0.00034699,30]
[366717698,1750415706985,-500.0,0.00034699,30]
[366717699,1750415706995,-151.0,0.00034699,30]
[366717700,1750415707005,-151.0,0.00034699,30]
[366717701,1750415707014,-518.5,0.00034699,30]
[366717702,1750415707024,-537.6845,0.00034699,30]
[366717703,1750415707033,-557.5788265,0.00034699,30]
[366717704,1750415707043,-578.20924308,0.00034699,30]
[366717705,1750415707053,-151.0,0.00034699,30]
[366717706,1750415707062,-599.60298507,0.00034699,30]
[366717707,1750415707071,-151.0,0.00034699,30]
[366717708,1750415707081,-151.0,0.00034699,30]
[366717709,1750415707092,-621.78829552,0.00034699,30]
[366717710,1750415707103,-644.79446245,0.00034699,30]
[366717711,1750415707114,-151.0,0.00034699,30]
[366717712,1750415707124,-500.0,0.00034699,30]
[366717713,1750415707135,-151.0,0.00034699,30]
[366717714,1750415707145,-200.0,0.00034699,30]
[366717715,1750415707155,-1888.00000001,0.00034699,30]
[366717716,1750415707164,-151.0,0.00034699,30]
[366717717,1750415707174,-156.90868842,0.00034699,30]
[366717718,1750415707183,-151.0,0.00034699,30]
[366717719,1750415707193,-500.0,0.00034699,30]
[366717720,1750415707203,-200.0,0.00034699,30]
[366717721,1750415707213,-209.6,0.000347,13]
[366717722,1750415707222,-150.0,0.00034715,120]
[366717723,1750415707231,-508.95548857,0.00034765,7]
[366717724,1750415707242,-400.0,0.0003477,2]
[366717725,1750415707251,-400.0,0.0003477,2]
[366717726,1750415707261,-400.0,0.0003477,2]
[366717727,1750415707273,-400.0,0.0003477,2]
[366717728,1750415707284,-2007.68811441,0.0003478,10]
[366717729,1750415707294,-208.27685819,0.0003479,7]
[366717730,1750415707304,-153.89693571,0.0003479,7]
[366717731,1750415707314,-156.79841718,0.0003479,7]
[366717732,1750415707326,-150.0,0.0003479,7]
[366717733,1750415707336,-155.10065418,0.0003479,7]
[366717734,1750415707346,-190542.89789141,0.0003479,10]
[366717735,1750415707357,-1716.0,0.0003479,2]
[366717736,1750415707367,-638.46598098,0.0003479,2]
[366717737,1750415707378,-5000.0,0.00034794,23]
[366717738,1750415707387,-4000000.0,0.000348,7]
[366717739,1750415707397,-1001573.28446597,0.000348,120]
[366717740,1750415707407,-167.57,0.00034819,2]
[366717741,1750415707416,-150.0,0.00034849,120]
[366717742,1750415707426,-508.0,0.00034863,30]
[366717743,1750415707435,-508.0,0.00034863,30]
[366717744,1750415707446,-253.03057,0.00034888,7]
[366717745,1750415707455,-32443.22431652,0.000349,7]
[366717746,1750415707465,-638.0,0.0003491,2]
[366717747,1750415707475,-803.0,0.0003491,2]
[366717748,1750415707485,-559.0,0.0003491,2]
[366717749,1750415707495,-928.0,0.0003491,2]
[366717750,1750415707504,-1278.0,0.0003491,2]
[366717751,1750415707513,-2004.0,0.0003491,2]
[366717752,1750415707522,-591.0,0.0003491,2]
[366717753,1750415707532,-1675.0,0.0003491,2]
[366717754,1750415707541,-1161.0,0.0003491,2]
[366717755,1750415707551,-4094.0,0.0003491,2]
[366717756,1750415707560,-156.0,0.0003491,2]
[366717757,1750415707569,-7117.0,0.0003491,2]
[366717758,1750415707578,-194.72792766,0.00034948,2]
[366717759,1750415707588,-1000.0,0.0003499,120]
[366717760,1750415707597,-4361038.437874,0.00035,5]
[366717761,1750415707606,-150.0,0.00035,2]
[366717762,1750415707616,-5000.0,0.00035,20]
[366717763,1750415707626,-200.0,0.00035,120]
[366717764,1750415707635,-2000.0,0.00035,30]
[366717765,1750415707644,-78519.41364421,0.00035,120]
[366717766,1750415707657,-10845.0,0.00035,2]
[366717767,1750415707667,-1308.11,0.00035,120]
[366717768,1750415707676,-2000.0,0.00035,120]
[366717769,1750415707685,-1247.0,0.00035,120]
[366717770,1750415707694,-2384.99602524,0.00035,120]
[366717771,1750415707704,-247.33512567,0.00035,7]
[366717772,1750415707713,-15870.679999,0.00035,2]
[366717773,1750415707723,-1532.77229675,0.00035,4]
[366717774,1750415707733,-230.42877722,0.00035,30]
[366717775,1750415707743,-830.45,0.00035,30]
[366717776,1750415707752,-2006.28791182,0.00035,15]
[366717777,1750415707763,-50000.0,0.00035,15]
[366717778,1750415707773,-5000.0,0.00035068,26]
[366717779,1750415707783,-253.03057,0.00035088,7]
[366717780,1750415707793,-160.0,0.000351,120]
[366717781,1750415707803,-175.0,0.000351,120]
[366717782,1750415707814,-508.0,0.00035137,30]
[366717783,1750415707824,-508.0,0.00035137,30]
[366717784,1750415707834,-1716.0,0.00035138,2]
[366717785,1750415707843,-150.0,0.00035189,120]
[366717786,1750415707853,-150.0,0.00035195,2]
[366717787,1750415707863,-205.0,0.00035201,21]
[366717788,1750415707872,-150.0,0.00035201,120]
[366717789,1750415707882,-253.03057,0.00035288,7]
[366717790,1750415707891,-150.0,0.00035341,120]
[366717791,1750415707902,-5000.0,0.00035342,29]
[366717792,1750415707911,-508.0,0.00035411,30]
[366717793,1750415707921,-508.0,0.00035411,30]
[366717794,1750415707930,-480.75006584,0.00035423,30]
[366717795,1750415707939,-2610.07731525,0.00035423,30]
[366717796,1750415707950,-700.0,0.00035432,60]
[366717797,1750415707960,-277.35679052,0.00035442,2]
[366717798,1750415707971,-500.0,0.00035483,120]
[366717799,1750415707981,-1716.0,0.00035486,2]
[366717800,1750415707990,-253.03057,0.00035488,7]
[366717801,1750415707999,-150.0,0.00035545,120]
[366717802,1750415708009,-271.0,0.0003555,60]
[366717803,1750415708018,-350.0,0.00035581,60]
[366717804,1750415708028,-150.0,0.00035583,120]
[366717805,1750415708039,-502.17630277,0.00035616,35]
[366717806,1750415708049,-4839.10998792,0.00035616,32]
[366717807,1750415708059,-2674.34,0.00035616,13]
[366717808,1750415708069,-187.48157022,0.00035616,30]
[366717809,1750415708079,-508.0,0.00035685,30]
[366717810,1750415708089,-508.0,0.00035685,30]
[366717811,1750415708099,-253.03057,0.00035688,7]
[366717812,1750415708109,-150.0,0.00035757,120]
[366717813,1750415708118,-1716.0,0.00035834,2]
[366717814,1750415708128,-530.54168309,0.0003588,120]
[366717815,1750415708138,-545.98620758,0.0003588,120]
[366717816,1750415708148,-253.03057,0.00035888,7]
[366717817,1750415708158,-2277.27517,0.00035888,30]
[366717818,1750415708168,-150.0,0.0003589,120]
[366717819,1750415708178,-147.79019684,0.0003589,60]
[366717820,1750415708188,-249.0,0.0003589,60]
[366717821,1750415708198,-249.0,0.0003589,60]
[366717822,1750415708207,-249.0,0.0003589,60]
[366717823,1750415708217,-249.0,0.0003589,60]
[366717824,1750415708226,-249.0,0.0003589,60]
[366717825,1750415708236,-249.0,0.0003589,60]
[366717826,1750415708245,-249.0,0.0003589,60]
[366717827,1750415708255,-249.0,0.0003589,60]
[366717828,1750415708264,-249.0,0.0003589,60]
[366717829,1750415708277,-249.0,0.0003589,60]
[366717830,1750415708287,-249.0,0.0003589,60]
[366717831,1750415708296,-249.0,0.0003589,60]
[366717832,1750415708306,-249.0,0.0003589,60]
[366717833,1750415708315,-153.0,0.0003589,60]
[366717834,1750415708324,-153.0,0.0003589,60]
[366717835,1750415708334,-153.0,0.0003589,60]
[366717836,1750415708343,-153.0,0.0003589,60]
[366717837,1750415708353,-153.0,0.0003589,60]
[366717838,1750415708364,-153.0,0.0003589,60]
[366717839,1750415708374,-153.0,0.0003589,60]
[366717840,1750415708383,-153.0,0.0003589,60]
[366717841,1750415708393,-153.0,0.0003589,60]
[366717842,1750415708403,-153.0,0.0003589,60]
[366717843,1750415708413,-153.0,0.0003589,60]
[366717844,1750415708422,-153.0,0.0003589,60]
[366717845,1750415708431,-153.0,0.0003589,60]
[366717846,1750415708440,-153.0,0.0003589,60]
[366717847,1750415708450,-153.0,0.0003589,60]
[366717848,1750415708459,-153.0,0.0003589,60]
[366717849,1750415708468,-153.0,0.0003589,60]
[366717850,1750415708478,-153.0,0.0003589,60]
[366717851,1750415708487,-153.0,0.0003589,60]
[366717852,1750415708496,-153.0,0.0003589,60]
[366717853,1750415708506,-153.0,0.0003589,60]
[366717854,1750415708515,-153.0,0.0003589,60]
[366717855,1750415708524,-153.0,0.0003589,60]
[366717856,1750415708533,-153.0,0.0003589,60]
[366717857,1750415708542,-153.0,0.0003589,60]
[366717858,1750415708551,-153.0,0.0003589,60]
[366717859,1750415708560,-153.0,0.0003589,60]
[366717860,1750415708569,-153.0,0.0003589,60]
[366717861,1750415708579,-153.0,0.0003589,60]
[366717862,1750415708588,-153.0,0.0003589,60]
[366717863,1750415708598,-153.0,0.0003589,60]
[366717864,1750415708607,-153.0,0.0003589,60]
[366717865,1750415708616,-153.0,0.0003589,60]
[366717866,1750415708626,-153.0,0.0003589,60]
[366717867,1750415708638,-153.0,0.0003589,60]
[366717868,1750415708647,-153.0,0.0003589,60]
[366717869,1750415708656,-153.0,0.0003589,60]
[366717870,1750415708666,-153.0,0.0003589,60]
[366717871,1750415708675,-153.0,0.0003589,60]
[366717872,1750415708684,-153.0,0.0003589,60]
[366717873,1750415708693,-153.0,0.0003589,60]
[366717874,1750415708703,-153.0,0.0003589,60]
[366717875,1750415708712,-153.0,0.0003589,60]
[366717876,1750415708721,-153.0,0.0003589,60]
[366717877,1750415708731,-153.0,0.0003589,60]
[366717878,1750415708740,-153.0,0.0003589,60]
[366717879,1750415708749,-153.0,0.0003589,60]
[366717880,1750415708758,-153.0,0.0003589,60]
[366717881,1750415708768,-153.0,0.0003589,60]
[366717882,1750415708777,-153.0,0.0003589,60]
[366717883,1750415708787,-153.0,0.0003589,60]
[366717884,1750415708796,-153.0,0.0003589,60]
[366717885,1750415708806,-153.0,0.0003589,60]
[366717886,1750415708816,-153.0,0.0003589,60]
[366717887,1750415708825,-153.0,0.0003589,60]
[366717888,1750415708835,-153.0,0.0003589,60]
[366717889,1750415708846,-153.0,0.0003589,60]
[366717890,1750415708857,-153.0,0.0003589,60]
[366717891,1750415708867,-153.0,0.0003589,60]
[366717892,1750415708877,-153.0,0.0003589,60]
[366717893,1750415708886,-153.0,0.0003589,60]
[366717894,1750415708896,-153.0,0.0003589,60]
[366717895,1750415708905,-153.0,0.0003589,60]
[366717896,1750415708915,-153.0,0.0003589,60]
[366717897,1750415708925,-153.0,0.0003589,60]
[366717898,1750415708935,-153.0,0.0003589,60]
[366717899,1750415708945,-153.0,0.0003589,60]
[366717900,1750415708955,-153.0,0.0003589,60]
[366717901,1750415708967,-153.0,0.0003589,60]
[366717902,1750415708977,-153.0,0.0003589,60]
[366717903,1750415708986,-153.0,0.0003589,60]
[366717904,1750415708996,-153.0,0.0003589,60]
[366717905,1750415709005,-153.0,0.0003589,60]
[366717906,1750415709015,-153.0,0.0003589,60]
[366717907,1750415709026,-153.0,0.0003589,60]
[366717908,1750415709035,-153.0,0.0003589,60]
[366717909,1750415709044,-153.0,0.0003589,60]
[366717910,1750415709053,-153.0,0.0003589,60]
[366717911,1750415709062,-153.0,0.0003589,60]
[366717912,1750415709071,-153.0,0.0003589,60]
[366717913,1750415709081,-153.0,0.0003589,60]
[366717914,1750415709090,-153.0,0.0003589,60]
[366717915,1750415709100,-153.0,0.0003589,60]
[366717916,1750415709110,-153.0,0.0003589,60]
[366717917,1750415709119,-153.0,0.0003589,60]
[366717918,1750415709129,-153.0,0.0003589,60]
[366717919,1750415709139,-153.0,0.0003589,60]
[366717920,1750415709148,-153.0,0.0003589,60]
[366717921,1750415709158,-153.0,0.0003589,60]
[366717922,1750415709167,-153.0,0.0003589,60]
[366717923,1750415709177,-153.0,0.0003589,60]
[366717924,1750415709186,-153.0,0.0003589,60]
[366717925,1750415709195,-153.0,0.0003589,60]
[366717926,1750415709205,-153.0,0.0003589,60]
[366717927,1750415709215,-153.0,0.0003589,60]
[366717928,1750415709225,-153.0,0.0003589,60]
[366717929,1750415709235,-153.0,0.0003589,60]
[366717930,1750415709244,-153.0,0.0003589,60]
[366717931,1750415709254,-153.0,0.0003589,60]
[366717932,1750415709264,-153.0,0.0003589,60]
[366717933,1750415709276,-153.0,0.0003589,60]
[366717934,1750415709286,-153.0,0.0003589,60]
[366717935,1750415709296,-153.0,0.0003589,60]
[366717936,1750415709306,-153.0,0.0003589,60]
[366717937,1750415709316,-153.0,0.0003589,60]
[366717938,1750415709326,-153.0,0.0003589,60]
[366717939,1750415709335,-153.0,0.0003589,60]
[366717940,1750415709345,-153.0,0.0003589,60]
[366717941,1750415709356,-153.0,0.0003589,60]
[366717942,1750415709366,-153.0,0.0003589,60]
[366717943,1750415709376,-153.0,0.0003589,60]
[366717944,1750415709385,-153.0,0.0003589,60]
[366717945,1750415709395,-153.0,0.0003589,60]
[366717946,1750415709404,-153.0,0.0003589,60]
[366717947,1750415709414,-153.0,0.0003589,60]
[366717948,1750415709423,-153.0,0.0003589,60]
[366717949,1750415709434,-153.0,0.0003589,60]
[366717950,1750415709444,-153.0,0.0003589,60]
[366717951,1750415709454,-153.0,0.0003589,60]
[366717952,1750415709464,-153.0,0.0003589,60]
[366717953,1750415709474,-153.0,0.0003589,60]
[366717954,1750415709484,-153.0,0.0003589,60]
[366717955,1750415709494,-153.0,0.0003589,60]
[366717956,1750415709504,-153.0,0.0003589,60]
[366717957,1750415709513,-153.0,0.0003589,60]
[366717958,1750415709523,-153.0,0.0003589,60]
[366717959,1750415709532,-153.0,0.0003589,60]
[366717960,1750415709541,-153.0,0.0003589,60]
[366717961,1750415709551,-153.0,0.0003589,60]
[366717962,1750415709561,-153.0,0.0003589,60]
[366717963,1750415709571,-153.0,0.0003589,60]
[366717964,1750415709581,-153.0,0.0003589,60]
[366717965,1750415709590,-153.0,0.0003589,60]
[366717966,1750415709601,-153.0,0.0003589,60]
[366717967,1750415709610,-153.0,0.0003589,60]
[366717968,1750415709620,-153.0,0.0003589,60]
[366717969,1750415709629,-153.0,0.0003589,60]
[366717970,1750415709639,-153.0,0.0003589,60]
[366717971,1750415709648,-153.0,0.0003589,60]
[366717972,1750415709658,-153.0,0.0003589,60]
[366717973,1750415709667,-153.0,0.0003589,60]
[366717974,1750415709677,-153.0,0.0003589,60]
[366717975,1750415709686,-153.0,0.0003589,60]
[366717976,1750415709696,-153.0,0.0003589,60]
[366717977,1750415709705,-153.0,0.0003589,60]
[366717978,1750415709715,-179.0,0.0003589,60]
[366717979,1750415709724,-179.0,0.0003589,60]
[366717980,1750415709734,-179.0,0.0003589,60]
[366717981,1750415709743,-179.0,0.0003589,60]
[366717982,1750415709753,-179.0,0.0003589,60]
[366717983,1750415709762,-179.0,0.0003589,60]
[366717984,1750415709771,-179.0,0.0003589,60]
[366717985,1750415709780,-179.0,0.0003589,60]
[366717986,1750415709791,-179.0,0.0003589,60]
[366717987,1750415709800,-150.0,0.00035944,120]
[366717988,1750415709810,-508.0,0.00035959,30]
[366717989,1750415709819,-508.0,0.00035959,30]
[366717990,1750415709829,-164.13,0.00035984,2]
[366717991,1750415709839,-1000.0,0.0003599,120]
[366717992,1750415709849,-5000.0,0.00036,20]
[366717993,1750415709859,-47000.0,0.00036,120]
[366717994,1750415709868,-4000.0,0.00036,4]
[366717995,1750415709878,-1000.0,0.00036,30]
[366717996,1750415709889,-59605.10767037,0.00036,30]
[366717997,1750415709899,-1000.0,0.00036,120]
[366717998,1750415709909,-1000.0,0.00036,30]
[366717999,1750415709918,-1000.0,0.00036,120]
[366718000,1750415709929,-2000.0,0.00036,120]
[366718001,1750415709939,-414.02069868,0.00036,14]
[366718002,1750415709948,-2545.07424589,0.00036,120]
[366718003,1750415709958,-253.03057,0.00036088,7]
[366718004,1750415709968,-2277.27517,0.00036088,30]
[366718005,1750415709978,-150.0,0.00036124,120]
[366718006,1750415709988,-150.0,0.00036147,120]